[Event "*** Titled Tuesday Blitz"]
[Site "Chess.com"]
[Date "2019.05.07"]
[Round "5"]
[White "SaraciNderim"]
[Black "joppie2"]
[Result "0-1"]
[WhiteElo "2735"]
[BlackElo "2772"]
[TimeControl "180+2"]
[EndTime "14:09:42 PDT"]
[Termination "joppie2 won by resignation"]

1. d4 {[%clk 0:03:01.9]} 1... Nf6 {[%clk 0:03:00.3]} 2. c3 {[%clk 0:02:59.6]}
2... d5 {[%clk 0:02:58.7]} 3. Bf4 {[%clk 0:03:00.5]} 3... c5 {[%clk 0:02:59.3]}
4. e3 {[%clk 0:03:01.6]} 4... e6 {[%clk 0:02:52.3]} 5. Nd2 {[%clk 0:03:02.2]}
5... Bd6 {[%clk 0:02:53.8]} 6. Bg3 {[%clk 0:03:02.7]} 6... O-O {[%clk
0:02:52.8]} 7. Ngf3 {[%clk 0:03:03.6]} 7... Qc7 {[%clk 0:02:54]} 8. Bd3 {[%clk
0:03:00]} 8... Nbd7 {[%clk 0:02:55.5]} 9. O-O {[%clk 0:02:36.1]} 9... e5 {[%clk
0:02:52.1]} 10. dxe5 {[%clk 0:02:38]} 10... Nxe5 {[%clk 0:02:54]} 11. Nxe5
{[%clk 0:02:38.7]} 11... Bxe5 {[%clk 0:02:55.9]} 12. Bxe5 {[%clk 0:02:36.5]}
12... Qxe5 {[%clk 0:02:56.4]} 13. Qf3 {[%clk 0:02:37.5]} 13... Bg4 {[%clk
0:02:52.7]} 14. Qg3 {[%clk 0:02:37.5]} 14... Qe7 {[%clk 0:02:54.2]} 15. h3
{[%clk 0:02:36.4]} 15... Bh5 {[%clk 0:02:52.8]} 16. Rfe1 {[%clk 0:02:25]} 16...
Rad8 {[%clk 0:02:50.2]} 17. e4 {[%clk 0:02:21.6]} 17... dxe4 {[%clk 0:02:27.8]}
18. Nxe4 {[%clk 0:02:22.1]} 18... Bg6 {[%clk 0:02:26.2]} 19. Nxf6+ {[%clk
0:01:52.3]} 19... Qxf6 {[%clk 0:02:27]} 20. Bxg6 {[%clk 0:01:53.1]} 20... hxg6
{[%clk 0:02:28.9]} 21. Re2 {[%clk 0:01:53]} 21... Qa6 {[%clk 0:02:22.8]} 22. Qf3
{[%clk 0:01:36.2]} 22... Rd3 {[%clk 0:02:22.4]} 23. Qe4 {[%clk 0:01:36.3]} 23...
Rfd8 {[%clk 0:02:21.3]} 24. a3 {[%clk 0:01:35.7]} 24... Rd1+ {[%clk 0:01:50.5]}
25. Rxd1 {[%clk 0:01:34.4]} 25... Rxd1+ {[%clk 0:01:52.3]} 26. Re1 {[%clk
0:01:35.8]} 26... Qc6 {[%clk 0:01:46.5]} 27. Qe3 {[%clk 0:01:28.6]} 27... Rd7
{[%clk 0:01:23.6]} 28. Qf4 {[%clk 0:01:25.1]} 28... Qd5 {[%clk 0:01:09.5]} 29.
Re8+ {[%clk 0:01:11]} 29... Kh7 {[%clk 0:01:10.6]} 30. Re5 {[%clk 0:01:03.9]}
30... Qd1+ {[%clk 0:01:06.7]} 31. Kh2 {[%clk 0:01:04.8]} 31... Qd6 {[%clk
0:01:06.4]} 32. g3 {[%clk 0:01:01.5]} 32... Qf6 {[%clk 0:01:05.9]} 33. Rxc5
{[%clk 0:00:30.1]} 33... Qxf4 {[%clk 0:01:05.9]} 34. gxf4 {[%clk 0:00:32]} 34...
Rd2 {[%clk 0:01:06.9]} 35. b4 {[%clk 0:00:20.6]} 35... Rxf2+ {[%clk 0:01:05.5]}
36. Kg3 {[%clk 0:00:22.1]} 36... Ra2 {[%clk 0:01:06.1]} 37. Ra5 {[%clk
0:00:14.5]} 37... a6 {[%clk 0:01:06.3]} 38. c4 {[%clk 0:00:15.7]} 38... Rc2
{[%clk 0:01:06.4]} 39. c5 {[%clk 0:00:16]} 39... Rc3+ {[%clk 0:01:07.4]} 40. Kg4
{[%clk 0:00:16.2]} 40... Kh6 {[%clk 0:01:05.1]} 41. f5 {[%clk 0:00:12.9]} 41...
Rc4+ {[%clk 0:01:05.2]} 42. Kg3 {[%clk 0:00:14.1]} 42... gxf5 {[%clk 0:01:04.9]}
43. h4 {[%clk 0:00:14.2]} 43... g6 {[%clk 0:01:05.1]} 44. b5 {[%clk 0:00:10.8]}
44... Rxc5 {[%clk 0:01:04.2]} 45. a4 {[%clk 0:00:12.2]} 45... axb5 {[%clk
0:01:01.4]} 46. axb5 {[%clk 0:00:12.9]} 46... b6 {[%clk 0:01:02.8]} 47. Ra7
{[%clk 0:00:13.2]} 47... Kg7 {[%clk 0:01:04.2]} 0-1

[Event "*** Titled Tuesday Blitz"]
[Site "Chess.com"]
[Date "2019.05.07"]
[Round "5"]
[White "Rap_woyska"]
[Black "VFernandezB"]
[Result "0-1"]
[WhiteElo "2416"]
[BlackElo "2351"]
[TimeControl "180+2"]
[EndTime "14:09:46 PDT"]
[Termination "VFernandezB won by checkmate"]

1. c4 {[%clk 0:02:38.9]} 1... Nf6 {[%clk 0:02:55.3]} 2. Nf3 {[%clk 0:02:40.2]}
2... e6 {[%clk 0:02:55.6]} 3. e3 {[%clk 0:02:41.1]} 3... d5 {[%clk 0:02:56.9]}
4. b3 {[%clk 0:02:43]} 4... Bd6 {[%clk 0:02:52.6]} 5. Bb2 {[%clk 0:02:44.1]}
5... b6 {[%clk 0:02:54.2]} 6. Nc3 {[%clk 0:02:43.7]} 6... Bb7 {[%clk 0:02:55.1]}
7. d4 {[%clk 0:02:45.3]} 7... O-O {[%clk 0:02:55.6]} 8. Bd3 {[%clk 0:02:46.8]}
8... Ne4 {[%clk 0:02:54.5]} 9. O-O {[%clk 0:02:45.7]} 9... f5 {[%clk 0:02:55.2]}
10. Ne2 {[%clk 0:02:46.9]} 10... Rf6 {[%clk 0:02:46]} 11. Ne5 {[%clk 0:02:38.3]}
11... Rh6 {[%clk 0:02:44.5]} 12. f3 {[%clk 0:02:24.4]} 12... Qh4 {[%clk
0:02:29.3]} 13. fxe4 {[%clk 0:01:59.2]} 13... Qxh2+ {[%clk 0:02:30.1]} 14. Kf2
{[%clk 0:02:00.5]} 14... fxe4 {[%clk 0:02:30.7]} 15. Nf4 {[%clk 0:01:25.5]}
15... Qh4+ {[%clk 0:02:23]} 16. Ke2 {[%clk 0:01:00.9]} 16... exd3+ {[%clk
0:02:22.6]} 17. Qxd3 {[%clk 0:01:02.8]} 17... Bxe5 {[%clk 0:02:18.2]} 18. dxe5
{[%clk 0:01:02.5]} 18... Nd7 {[%clk 0:02:14.6]} 19. Rh1 {[%clk 0:00:57.7]} 19...
Qg4+ {[%clk 0:02:14.7]} 20. Kd2 {[%clk 0:00:51.2]} 20... Nc5 {[%clk 0:02:14]}
21. Qe2 {[%clk 0:00:46.4]} 21... Ne4+ {[%clk 0:02:03.4]} 22. Kc2 {[%clk
0:00:46.2]} 22... Qxe2+ {[%clk 0:01:59.2]} 23. Nxe2 {[%clk 0:00:48.1]} 23...
Rxh1 {[%clk 0:01:59.3]} 24. Rxh1 {[%clk 0:00:46]} 24... dxc4 {[%clk 0:01:53.3]}
25. bxc4 {[%clk 0:00:44]} 25... c5 {[%clk 0:01:54.8]} 26. Nf4 {[%clk 0:00:44.4]}
26... Ng5 {[%clk 0:01:51.9]} 27. Rd1 {[%clk 0:00:40.5]} 27... Be4+ {[%clk
0:01:45.3]} 28. Kb3 {[%clk 0:00:41.7]} 28... Bc6 {[%clk 0:01:45.8]} 29. Rd6
{[%clk 0:00:40.8]} 29... Rc8 {[%clk 0:01:46]} 30. Nxe6 {[%clk 0:00:23.8]} 30...
Nxe6 {[%clk 0:01:47.9]} 31. Rxe6 {[%clk 0:00:25.7]} 31... Bxg2 {[%clk 0:01:48]}
32. Re7 {[%clk 0:00:27.3]} 32... Kf8 {[%clk 0:01:38.9]} 33. Rxa7 {[%clk
0:00:25.5]} 33... Re8 {[%clk 0:01:34.8]} 34. e6 {[%clk 0:00:25.3]} 34... Rxe6
{[%clk 0:01:34.5]} 35. Bxg7+ {[%clk 0:00:19.2]} 35... Ke8 {[%clk 0:01:34.9]} 36.
Bc3 {[%clk 0:00:20]} 36... h5 {[%clk 0:01:27.7]} 37. Rh7 {[%clk 0:00:18.9]}
37... Bf3 {[%clk 0:01:27.8]} 38. Bd2 {[%clk 0:00:13.7]} 38... Rd6 {[%clk
0:01:24.6]} 39. Kc3 {[%clk 0:00:14.2]} 39... Be4 {[%clk 0:01:22.4]} 40. Rh8+
{[%clk 0:00:15.5]} 40... Kd7 {[%clk 0:01:22.2]} 41. Be1 {[%clk 0:00:17.1]} 41...
Rd3+ {[%clk 0:01:21.5]} 42. Kb2 {[%clk 0:00:18.7]} 42... Bf3 {[%clk 0:01:19.8]}
43. Bc3 {[%clk 0:00:11]} 43... Rxe3 {[%clk 0:01:20.1]} 44. Rh6 {[%clk
0:00:12.6]} 44... Kc7 {[%clk 0:01:18.1]} 45. Bd2 {[%clk 0:00:12]} 45... Re4
{[%clk 0:01:08.4]} 46. Kc3 {[%clk 0:00:11.5]} 46... Bg4 {[%clk 0:01:09.5]} 47.
Bg5 {[%clk 0:00:11.7]} 47... Be6 {[%clk 0:01:05.6]} 48. Rh7+ {[%clk 0:00:12.4]}
48... Kc6 {[%clk 0:01:05.8]} 49. Rxh5 {[%clk 0:00:10.2]} 49... Rxc4+ {[%clk
0:01:07]} 50. Kb2 {[%clk 0:00:07.6]} 50... Rb4+ {[%clk 0:01:06.5]} 51. Ka3
{[%clk 0:00:07]} 51... Rg4 {[%clk 0:01:03.7]} 52. Bd8 {[%clk 0:00:05.3]} 52...
Rg2 {[%clk 0:01:03.7]} 53. Bxb6 {[%clk 0:00:02.6]} 53... Rxa2# {[%clk
0:01:03.2]} 0-1

[Event "*** Titled Tuesday Blitz"]
[Site "Chess.com"]
[Date "2019.05.07"]
[Round "5"]
[White "LonesomeGeorge1"]
[Black "JeremDev"]
[Result "1-0"]
[WhiteElo "2377"]
[BlackElo "2478"]
[TimeControl "180+2"]
[EndTime "14:09:48 PDT"]
[Termination "LonesomeGeorge1 won on time"]

1. c4 {[%clk 0:03:01.9]} 1... c5 {[%clk 0:02:59.3]} 2. g3 {[%clk 0:03:02.7]}
2... Nc6 {[%clk 0:02:59.9]} 3. Bg2 {[%clk 0:03:04.2]} 3... e6 {[%clk 0:03:00]}
4. Nf3 {[%clk 0:03:03.4]} 4... Nge7 {[%clk 0:02:55.4]} 5. O-O {[%clk 0:02:58.2]}
5... g6 {[%clk 0:02:54]} 6. d4 {[%clk 0:02:53.6]} 6... cxd4 {[%clk 0:02:43.4]}
7. Nxd4 {[%clk 0:02:55.5]} 7... Bg7 {[%clk 0:02:44.6]} 8. Nb5 {[%clk 0:02:53.2]}
8... O-O {[%clk 0:02:44.9]} 9. Nd6 {[%clk 0:02:54]} 9... Nf5 {[%clk 0:02:44.7]}
10. Nxf5 {[%clk 0:02:51.6]} 10... gxf5 {[%clk 0:02:44.4]} 11. Nc3 {[%clk
0:02:39.3]} 11... Qe7 {[%clk 0:02:30.1]} 12. Nb5 {[%clk 0:02:12.3]} 12... Qc5
{[%clk 0:02:07.8]} 13. e4 {[%clk 0:01:42.2]} 13... fxe4 {[%clk 0:02:02.4]} 14.
Bxe4 {[%clk 0:01:42.8]} 14... f5 {[%clk 0:01:54.2]} 15. Bg2 {[%clk 0:01:39.8]}
15... Qxc4 {[%clk 0:01:51.9]} 16. Nd6 {[%clk 0:01:40.5]} 16... Qd4 {[%clk
0:01:50.4]} 17. Bf4 {[%clk 0:01:38.9]} 17... e5 {[%clk 0:01:32.1]} 18. Bd5+
{[%clk 0:01:35.8]} 18... Kh8 {[%clk 0:01:30.4]} 19. Qxd4 {[%clk 0:01:30.1]}
19... Nxd4 {[%clk 0:01:28.7]} 20. Be3 {[%clk 0:01:23.9]} 20... Ne6 {[%clk
0:01:25.8]} 21. Rac1 {[%clk 0:01:22.2]} 21... f4 {[%clk 0:01:24.6]} 22. Bd2
{[%clk 0:01:17]} 22... Nd4 {[%clk 0:01:23]} 23. Rc7 {[%clk 0:01:00.6]} 23... e4
{[%clk 0:01:13]} 24. Bxe4 {[%clk 0:00:51.7]} 24... Be5 {[%clk 0:01:14.1]} 25.
Bb4 {[%clk 0:00:48.9]} 25... a5 {[%clk 0:01:13.4]} 26. Ba3 {[%clk 0:00:44.5]}
26... fxg3 {[%clk 0:00:55.1]} 27. hxg3 {[%clk 0:00:37.6]} 27... Rb8 {[%clk
0:00:25]} 28. f4 {[%clk 0:00:22.6]} 28... Bxd6 {[%clk 0:00:18]} 29. Bxd6 {[%clk
0:00:24.5]} 29... Re8 {[%clk 0:00:15.7]} 30. Be5+ {[%clk 0:00:23.7]} 30... Rxe5
{[%clk 0:00:17]} 31. fxe5 {[%clk 0:00:25.6]} 31... Ne6 {[%clk 0:00:18.9]} 32.
Rc3 {[%clk 0:00:23.3]} 32... b5 {[%clk 0:00:19.5]} 33. Bb1 {[%clk 0:00:18.7]}
33... Kg7 {[%clk 0:00:17.4]} 34. Rcf3 {[%clk 0:00:18.7]} 34... Ng5 {[%clk
0:00:18.6]} 35. Rf5 {[%clk 0:00:18.1]} 35... h6 {[%clk 0:00:20.1]} 36. Rf8
{[%clk 0:00:18.9]} 36... Ra8 {[%clk 0:00:15.8]} 37. Rd8 {[%clk 0:00:19.1]} 37...
Ne6 {[%clk 0:00:12.5]} 38. Re8 {[%clk 0:00:19.3]} 38... Bb7 {[%clk 0:00:11.9]}
39. Re7+ {[%clk 0:00:17.6]} 39... Kg8 {[%clk 0:00:13]} 40. Rxd7 {[%clk
0:00:19.1]} 40... Bc6 {[%clk 0:00:06.8]} 41. Rd6 {[%clk 0:00:20.1]} 1-0

[Event "*** Titled Tuesday Blitz"]
[Site "Chess.com"]
[Date "2019.05.07"]
[Round "5"]
[White "ilm2034"]
[Black "Simoncelli15"]
[Result "1-0"]
[WhiteElo "2416"]
[BlackElo "2272"]
[TimeControl "180+2"]
[EndTime "14:09:50 PDT"]
[Termination "ilm2034 won by resignation"]

1. d4 {[%clk 0:03:01.5]} 1... d5 {[%clk 0:02:57.3]} 2. c4 {[%clk 0:03:02.6]}
2... e6 {[%clk 0:02:58.9]} 3. g3 {[%clk 0:03:03.5]} 3... Nf6 {[%clk 0:02:59.1]}
4. Bg2 {[%clk 0:03:04.6]} 4... Be7 {[%clk 0:03:00.1]} 5. Nf3 {[%clk 0:03:05.9]}
5... O-O {[%clk 0:03:01.5]} 6. O-O {[%clk 0:03:07.5]} 6... dxc4 {[%clk
0:03:02.2]} 7. Ne5 {[%clk 0:03:08]} 7... Nc6 {[%clk 0:03:02.7]} 8. Bxc6 {[%clk
0:03:09.1]} 8... bxc6 {[%clk 0:03:04.6]} 9. Nxc6 {[%clk 0:03:10.7]} 9... Qe8
{[%clk 0:03:06]} 10. Nxe7+ {[%clk 0:03:12.4]} 10... Qxe7 {[%clk 0:03:07.9]} 11.
Qa4 {[%clk 0:03:14]} 11... e5 {[%clk 0:03:08.4]} 12. dxe5 {[%clk 0:03:15]} 12...
Qxe5 {[%clk 0:03:10.3]} 13. Qxc4 {[%clk 0:03:16.6]} 13... Be6 {[%clk 0:03:04.3]}
14. Qd3 {[%clk 0:03:13]} 14... Rad8 {[%clk 0:03:02.9]} 15. Qe3 {[%clk
0:03:12.2]} 15... Qh5 {[%clk 0:03:01.2]} 16. f3 {[%clk 0:03:03.8]} 16... Bh3
{[%clk 0:02:25.8]} 17. Re1 {[%clk 0:02:57.7]} 17... Rfe8 {[%clk 0:02:24.8]} 18.
Qf2 {[%clk 0:02:58.6]} 18... Bd7 {[%clk 0:01:33]} 19. Nc3 {[%clk 0:02:56.4]}
19... Bc6 {[%clk 0:01:34]} 20. Be3 {[%clk 0:02:43.9]} 20... a5 {[%clk
0:01:19.9]} 21. Rad1 {[%clk 0:02:44]} 21... Rb8 {[%clk 0:01:20]} 22. b3 {[%clk
0:02:42.2]} 22... Qf5 {[%clk 0:01:10.4]} 23. Bd4 {[%clk 0:02:40.9]} 23... h5
{[%clk 0:01:10.6]} 24. e4 {[%clk 0:02:37.4]} 24... Qe6 {[%clk 0:01:08.2]} 25.
Kg2 {[%clk 0:02:30.9]} 25... h4 {[%clk 0:01:08.6]} 26. Qb2 {[%clk 0:02:27.7]}
26... a4 {[%clk 0:01:02.3]} 27. Bxf6 {[%clk 0:02:04.5]} 27... Qxf6 {[%clk
0:01:04.2]} 28. Nxa4 {[%clk 0:02:02.6]} 28... h3+ {[%clk 0:00:59.3]} 29. Kf2
{[%clk 0:01:52.3]} 29... Qg5 {[%clk 0:00:44.6]} 30. Nc3 {[%clk 0:01:50.1]} 30...
Qc5+ {[%clk 0:00:45]} 31. Kf1 {[%clk 0:01:38.3]} 31... Red8 {[%clk 0:00:43.1]}
32. Ne2 {[%clk 0:01:13.2]} 32... Bb5 {[%clk 0:00:33.5]} 33. Qc1 {[%clk
0:00:59.5]} 33... Qh5 {[%clk 0:00:20.1]} 34. Kf2 {[%clk 0:00:58.4]} 34... Re8
{[%clk 0:00:13.1]} 35. Nf4 {[%clk 0:00:58.2]} 35... Qe5 {[%clk 0:00:13.5]} 36.
Nxh3 {[%clk 0:00:56.3]} 36... c5 {[%clk 0:00:06.9]} 37. Rd5 {[%clk 0:00:54.2]}
37... Qe6 {[%clk 0:00:07.3]} 38. Nf4 {[%clk 0:00:49.8]} 38... Qa6 {[%clk
0:00:07.6]} 39. a4 {[%clk 0:00:47.9]} 39... Bc6 {[%clk 0:00:07.5]} 40. Rxc5
{[%clk 0:00:48.9]} 40... Ba8 {[%clk 0:00:07.2]} 41. Qc3 {[%clk 0:00:46.7]} 41...
Qh6 {[%clk 0:00:04.8]} 42. h4 {[%clk 0:00:41.5]} 42... Red8 {[%clk 0:00:06.3]}
43. Re2 {[%clk 0:00:39.1]} 43... g5 {[%clk 0:00:07.6]} 44. Rxg5+ {[%clk
0:00:39.6]} 44... Kf8 {[%clk 0:00:08.4]} 45. Qc5+ {[%clk 0:00:39.1]} 45... Ke8
{[%clk 0:00:08.6]} 46. Rg8+ {[%clk 0:00:39]} 46... Kd7 {[%clk 0:00:10.1]} 47.
Rd2+ {[%clk 0:00:39.8]} 1-0

[Event "*** Titled Tuesday Blitz"]
[Site "Chess.com"]
[Date "2019.05.07"]
[Round "5"]
[White "Sadikhov_Ulvi"]
[Black "Yaacovn"]
[Result "1-0"]
[WhiteElo "2693"]
[BlackElo "2792"]
[TimeControl "180+2"]
[EndTime "14:09:58 PDT"]
[Termination "Sadikhov_Ulvi won by resignation"]

1. Nf3 {[%clk 0:03:00.8]} 1... c6 {[%clk 0:02:22]} 2. g3 {[%clk 0:03:01.5]} 2...
d5 {[%clk 0:02:12.6]} 3. Bg2 {[%clk 0:03:02.3]} 3... g6 {[%clk 0:02:13.4]} 4.
O-O {[%clk 0:03:03.3]} 4... Bg7 {[%clk 0:02:12.7]} 5. d3 {[%clk 0:03:04.8]} 5...
Nf6 {[%clk 0:02:13.8]} 6. Nbd2 {[%clk 0:03:04.5]} 6... O-O {[%clk 0:02:14.8]} 7.
e4 {[%clk 0:03:04.5]} 7... Bg4 {[%clk 0:02:15.6]} 8. c3 {[%clk 0:03:03.2]} 8...
e6 {[%clk 0:02:15.5]} 9. h3 {[%clk 0:03:02.1]} 9... Bxf3 {[%clk 0:02:16.2]} 10.
Qxf3 {[%clk 0:03:03.8]} 10... Nfd7 {[%clk 0:02:16.1]} 11. Qe2 {[%clk 0:03:04.7]}
11... a5 {[%clk 0:01:58.7]} 12. a4 {[%clk 0:03:01.3]} 12... Na6 {[%clk 0:01:58]}
13. d4 {[%clk 0:03:00.2]} 13... Re8 {[%clk 0:01:55.5]} 14. e5 {[%clk 0:02:55.2]}
14... c5 {[%clk 0:01:54.8]} 15. Qb5 {[%clk 0:02:32.6]} 15... cxd4 {[%clk
0:01:52.9]} 16. cxd4 {[%clk 0:02:32.8]} 16... Nb4 {[%clk 0:01:53.1]} 17. Nb3
{[%clk 0:02:29.5]} 17... Qc7 {[%clk 0:01:24.5]} 18. Be3 {[%clk 0:02:02.5]} 18...
Qc6 {[%clk 0:01:24.5]} 19. Rfc1 {[%clk 0:01:50.5]} 19... Qxb5 {[%clk 0:01:23.7]}
20. axb5 {[%clk 0:01:51.7]} 20... a4 {[%clk 0:01:22.2]} 21. Nc5 {[%clk
0:01:49.1]} 21... Nxc5 {[%clk 0:01:20.2]} 22. Rxc5 {[%clk 0:01:49.6]} 22... Bf8
{[%clk 0:01:16.4]} 23. Rc7 {[%clk 0:01:49.9]} 23... b6 {[%clk 0:01:12.3]} 24.
Bf1 {[%clk 0:01:48.7]} 24... Rec8 {[%clk 0:01:11.1]} 25. Rxc8 {[%clk 0:01:38.7]}
25... Rxc8 {[%clk 0:01:13]} 26. Rxa4 {[%clk 0:01:39.8]} 26... Nc2 {[%clk
0:01:07]} 27. Bd2 {[%clk 0:01:40.4]} 27... h5 {[%clk 0:00:54]} 28. Bd3 {[%clk
0:01:39]} 28... Kh7 {[%clk 0:00:52.1]} 29. Bc3 {[%clk 0:01:36.7]} 29... Na3
{[%clk 0:00:43.6]} 30. Ra7 {[%clk 0:01:22.5]} 30... Kg8 {[%clk 0:00:43.3]} 31.
Rb7 {[%clk 0:01:20.4]} 31... Nc4 {[%clk 0:00:42.8]} 32. Bxc4 {[%clk 0:01:20.2]}
32... Rxc4 {[%clk 0:00:36.9]} 33. Rxb6 {[%clk 0:01:21.1]} 33... Rc8 {[%clk
0:00:20.2]} 34. Rc6 {[%clk 0:01:14.3]} 34... Rb8 {[%clk 0:00:20.2]} 35. b6
{[%clk 0:01:15.1]} 35... Be7 {[%clk 0:00:21.5]} 36. Ba5 {[%clk 0:01:12]} 36...
Kf8 {[%clk 0:00:21.1]} 37. Kf1 {[%clk 0:00:54.3]} 37... Ke8 {[%clk 0:00:21.5]}
38. Ke2 {[%clk 0:00:55.1]} 38... Bd8 {[%clk 0:00:21.4]} 39. b7 {[%clk
0:00:43.2]} 39... Rxb7 {[%clk 0:00:11.3]} 40. Rc8 {[%clk 0:00:43.7]} 40... Rxb2+
{[%clk 0:00:09.1]} 41. Kf3 {[%clk 0:00:41.9]} 41... Rb3+ {[%clk 0:00:09.6]} 42.
Kg2 {[%clk 0:00:42]} 42... Rd3 {[%clk 0:00:10.7]} 43. Bxd8 {[%clk 0:00:39.4]}
43... Kd7 {[%clk 0:00:08.5]} 44. Ra8 {[%clk 0:00:39.8]} 44... Rxd4 {[%clk
0:00:10]} 45. Bf6 {[%clk 0:00:38.4]} 45... Rc4 {[%clk 0:00:09.4]} 46. Rf8 {[%clk
0:00:37]} 46... d4 {[%clk 0:00:09.7]} 47. Rxf7+ {[%clk 0:00:37.5]} 47... Kc6
{[%clk 0:00:11.1]} 48. Kf3 {[%clk 0:00:28.6]} 48... d3 {[%clk 0:00:09]} 49. Ke3
{[%clk 0:00:28.5]} 49... Rd4 {[%clk 0:00:10.3]} 50. Kd2 {[%clk 0:00:28.8]} 50...
Kd5 {[%clk 0:00:11.7]} 51. Rd7+ {[%clk 0:00:27]} 1-0

[Event "*** Titled Tuesday Blitz"]
[Site "Chess.com"]
[Date "2019.05.07"]
[Round "5"]
[White "Alopekos"]
[Black "Rodalquilar"]
[Result "1-0"]
[WhiteElo "2581"]
[BlackElo "2531"]
[TimeControl "180+2"]
[EndTime "14:09:58 PDT"]
[Termination "Alopekos won by resignation"]

1. e4 {[%clk 0:03:01.9]} 1... Nf6 {[%clk 0:02:48.5]} 2. e5 {[%clk 0:03:02.5]}
2... Nd5 {[%clk 0:02:47.6]} 3. Nc3 {[%clk 0:03:04.1]} 3... Nxc3 {[%clk
0:02:47.7]} 4. dxc3 {[%clk 0:03:06]} 4... d5 {[%clk 0:02:47.7]} 5. Nf3 {[%clk
0:02:56.3]} 5... c5 {[%clk 0:02:45.8]} 6. Be3 {[%clk 0:02:54.9]} 6... b6 {[%clk
0:02:30.7]} 7. Bb5+ {[%clk 0:02:52.9]} 7... Bd7 {[%clk 0:02:17.1]} 8. Qxd5
{[%clk 0:02:03.4]} 8... Bxb5 {[%clk 0:02:05.7]} 9. Qxa8 {[%clk 0:02:03]} 9...
Qc7 {[%clk 0:02:07.6]} 10. Qe4 {[%clk 0:01:30.9]} 10... e6 {[%clk 0:02:08.5]}
11. O-O-O {[%clk 0:01:24.8]} 11... Bc6 {[%clk 0:02:09.3]} 12. Qh4 {[%clk
0:01:03.3]} 12... h6 {[%clk 0:02:06.9]} 13. Bg5 {[%clk 0:00:46.5]} 13... Nd7
{[%clk 0:02:07.5]} 14. Rhe1 {[%clk 0:00:43.5]} 14... Rg8 {[%clk 0:02:06.6]} 15.
Nd2 {[%clk 0:00:27.8]} 15... hxg5 {[%clk 0:02:06.6]} 16. Qh7 {[%clk 0:00:27.6]}
16... Nxe5 {[%clk 0:02:03.9]} 17. Qxg8 {[%clk 0:00:25.7]} 17... Bxg2 {[%clk
0:02:02.3]} 18. Ne4 {[%clk 0:00:14.2]} 18... Bxe4 {[%clk 0:01:46.5]} 19. Rxe4
{[%clk 0:00:16.1]} 19... Nd7 {[%clk 0:01:48.1]} 20. Re2 {[%clk 0:00:06.3]} 20...
Nf6 {[%clk 0:01:48.3]} 21. Qh8 {[%clk 0:00:07.1]} 21... Qf4+ {[%clk 0:01:49.8]}
22. Kb1 {[%clk 0:00:08.1]} 22... Qf3 {[%clk 0:01:51.1]} 23. Red2 {[%clk
0:00:08.8]} 23... Nd5 {[%clk 0:01:51.2]} 24. c4 {[%clk 0:00:08.5]} 24... Nb4
{[%clk 0:01:47.1]} 25. Rd8+ {[%clk 0:00:08.9]} 25... Ke7 {[%clk 0:01:48.7]} 26.
Qxf8+ {[%clk 0:00:10.5]} 26... Kf6 {[%clk 0:01:50.6]} 27. R8d2 {[%clk
0:00:07.7]} 27... Nc6 {[%clk 0:01:47.6]} 28. Qd6 {[%clk 0:00:05.7]} 28... Nd4
{[%clk 0:01:49]} 29. c3 {[%clk 0:00:05.3]} 29... Nf5 {[%clk 0:01:47.5]} 30. Qd8+
{[%clk 0:00:05.9]} 30... Kg6 {[%clk 0:01:49.1]} 31. Qd3 {[%clk 0:00:07.5]} 31...
Qg2 {[%clk 0:01:49.8]} 32. f4 {[%clk 0:00:08]} 32... Qg4 {[%clk 0:01:49.4]} 33.
fxg5 {[%clk 0:00:08.4]} 33... e5 {[%clk 0:01:51]} 34. Qe2 {[%clk 0:00:05.1]}
34... Qxg5 {[%clk 0:01:44.9]} 35. Qxe5 {[%clk 0:00:05.1]} 35... f6 {[%clk
0:01:46.4]} 36. Qe8+ {[%clk 0:00:05]} 36... Kh7 {[%clk 0:01:47.9]} 37. Rd5
{[%clk 0:00:04.9]} 37... Qg4 {[%clk 0:01:46.8]} 38. Qe1 {[%clk 0:00:03.9]} 38...
Nh4 {[%clk 0:01:44.7]} 39. Qd2 {[%clk 0:00:04.5]} 39... Nf3 {[%clk 0:01:36.3]}
40. Qc2+ {[%clk 0:00:05.7]} 40... Kh6 {[%clk 0:01:37.2]} 41. Rd8 {[%clk
0:00:04.9]} 41... Ne5 {[%clk 0:01:33.8]} 42. Rh8+ {[%clk 0:00:05.3]} 42... Kg5
{[%clk 0:01:35.4]} 43. h4+ {[%clk 0:00:06.6]} 43... Kf4 {[%clk 0:01:37]} 44.
Rf1+ {[%clk 0:00:05.9]} 44... Ke3 {[%clk 0:01:38.5]} 45. Rd8 {[%clk 0:00:03.6]}
45... Qe2 {[%clk 0:01:30.3]} 46. Qxe2+ {[%clk 0:00:03.4]} 46... Kxe2 {[%clk
0:01:32.2]} 47. Rg1 {[%clk 0:00:04.4]} 47... Nxc4 {[%clk 0:01:31.8]} 48. Rxg7
{[%clk 0:00:04.8]} 48... f5 {[%clk 0:01:33.7]} 49. h5 {[%clk 0:00:06.1]} 49...
f4 {[%clk 0:01:34.9]} 50. Rf8 {[%clk 0:00:06.5]} 50... f3 {[%clk 0:01:36.8]} 51.
Re7+ {[%clk 0:00:06.9]} 51... Kd1 {[%clk 0:01:35.4]} 52. Rd7+ {[%clk 0:00:06.8]}
52... Nd2+ {[%clk 0:01:37.3]} 53. Rxd2+ {[%clk 0:00:07.8]} 53... Kxd2 {[%clk
0:01:38.5]} 54. Rxf3 {[%clk 0:00:09.4]} 1-0